fUSD/lending_fUSD_20260525
["ID","MTS","AMOUNT","RATE_DAILY","PERIOD"]
[422986426,1779712239000,-150.0,0.00013708,2]
[422986430,1779712239000,-166.66,0.00013836,2]
[422986432,1779712239000,-1474.4988445,0.000139,5]
[422986437,1779712239000,-2000.0,0.00013938,2]
[422986434,1779712239000,-150.0,0.00013916,2]
[422986329,1779712239000,-150.0,0.00013488,2]
[422986436,1779712239000,-412.79675156,0.00013938,2]
[422986433,1779712239000,-425.5011555,0.000139,5]
[422986438,1779712239000,-5000.0,0.00013938,2]
[422986385,1779712239000,-600.0,0.000137,5]
[422986400,1779712239000,-500.0,0.00013708,2]
[422986435,1779712239000,-5798.44836805,0.00013937,2]
[422986383,1779712239000,-166.66,0.00013699,2]
[422986397,1779712239000,-500.0,0.00013708,2]
[422986325,1779712239000,-150.0,0.00013488,2]
[422986315,1779712239000,-150.0,0.00013488,2]
[422986331,1779712239000,-150.0,0.00013488,2]
[422986336,1779712239000,-150.0,0.00013488,2]
[422986340,1779712239000,-1582.77,0.0001349,2]
[422986338,1779712239000,-1547.83,0.00013488,2]
[422986344,1779712239000,-165.44,0.00013615,2]
[422986352,1779712239000,-500.0,0.00013682,2]
[422986342,1779712239000,-1680.0,0.00013496,2]
[422986333,1779712239000,-150.0,0.00013488,2]
[422986354,1779712239000,-500.0,0.00013682,2]
[422986356,1779712239000,-500.0,0.00013682,2]
[422986313,1779712239000,-150.0,0.00013488,2]
[422986359,1779712239000,-500.0,0.00013682,2]
[422986365,1779712239000,-500.0,0.00013682,2]
[422986377,1779712239000,-500.0,0.00013698,2]
[422986381,1779712239000,-200.0,0.00013699,2]
[422986379,1779712239000,-500.0,0.00013698,2]
[422986370,1779712239000,-500.0,0.00013682,2]
[422986393,1779712239000,-150.0,0.00013708,2]
[422986375,1779712239000,-150.0,0.00013682,2]
[422986367,1779712239000,-500.0,0.00013682,2]
[422986363,1779712239000,-500.0,0.00013682,2]
[422986395,1779712239000,-200.0,0.00013708,2]
[422986362,1779712239000,-500.0,0.00013682,2]
[422986373,1779712239000,-521.33578172,0.00013682,2]
[422986357,1779712239000,-500.0,0.00013682,2]
[422986459,1779712240000,-500.0,0.00014037,2]
[422986474,1779712240000,-500.0,0.00014037,2]
[422986467,1779712240000,-500.0,0.00014037,2]
[422986470,1779712240000,-500.0,0.00014037,2]
[422986465,1779712240000,-500.0,0.00014037,2]
[422986472,1779712240000,-500.0,0.00014037,2]
[422986482,1779712240000,-500.0,0.00014037,2]
[422986481,1779712240000,-500.0,0.00014037,2]
[422986483,1779712240000,-500.0,0.00014037,2]
[422986471,1779712240000,-500.0,0.00014037,2]
[422986469,1779712240000,-500.0,0.00014037,2]
[422986478,1779712240000,-500.0,0.00014037,2]
[422986476,1779712240000,-500.0,0.00014037,2]
[422986475,1779712240000,-500.0,0.00014037,2]
[422986477,1779712240000,-500.0,0.00014037,2]
[422986479,1779712240000,-500.0,0.00014037,2]
[422986480,1779712240000,-500.0,0.00014037,2]
[422986485,1779712240000,-500.0,0.00014037,2]
[422986492,1779712240000,-500.0,0.00014037,2]
[422986488,1779712240000,-500.0,0.00014037,2]
[422986489,1779712240000,-500.0,0.00014037,2]
[422986491,1779712240000,-500.0,0.00014037,2]
[422986466,1779712240000,-500.0,0.00014037,2]
[422986473,1779712240000,-500.0,0.00014037,2]
[422986468,1779712240000,-500.0,0.00014037,2]
[422986451,1779712240000,-165.534,0.00014033,2]
[422986464,1779712240000,-500.0,0.00014037,2]
[422986490,1779712240000,-500.0,0.00014037,2]
[422986443,1779712240000,-3944.34516216,0.00013944,2]
[422986444,1779712240000,-519.0,0.00013956,2]
[422986441,1779712240000,-10716.41178682,0.00013944,2]
[422986442,1779712240000,-1031.84904382,0.00013944,2]
[422986439,1779712240000,-2500.0,0.00013938,2]
[422986440,1779712240000,-14051.37768842,0.0001394,2]
[422986456,1779712240000,-413.0802572,0.00014037,2]
[422986446,1779712240000,-166.66,0.00013973,2]
[422986445,1779712240000,-1271.0,0.00013956,2]
[422986448,1779712240000,-250.0,0.00014,2]
[422986449,1779712240000,-295.22359984,0.00014028,2]
[422986457,1779712240000,-500.0,0.00014037,2]
[422986450,1779712240000,-1923.622,0.00014033,2]
[422986447,1779712240000,-505.26668046,0.0001399,2]
[422986452,1779712240000,-500.0,0.00014037,2]
[422986453,1779712240000,-500.0,0.00014037,2]
[422986454,1779712240000,-500.0,0.00014037,2]
[422986455,1779712240000,-500.0,0.00014037,2]
[422986460,1779712240000,-500.0,0.00014037,2]
[422986458,1779712240000,-500.0,0.00014037,2]
[422986461,1779712240000,-500.0,0.00014037,2]
[422986462,1779712240000,-500.0,0.00014037,2]
[422986463,1779712240000,-500.0,0.00014037,2]
[422986486,1779712240000,-500.0,0.00014037,2]
[422986541,1779712240000,-647.0,0.00013452,5]
[422986494,1779712240000,-500.0,0.00014037,2]
[422986514,1779712240000,-271.22740164,0.00014037,2]
[422986516,1779712240000,-383.19491892,0.00014037,2]
[422986515,1779712240000,-500.0,0.00014037,2]
[422986524,1779712240000,-500.0,0.00014038,2]
[422986528,1779712240000,-500.0,0.00014038,2]
[422986529,1779712240000,-150.0,0.00014038,2]
[422986530,1779712240000,-1657.0,0.00014038,5]
[422986532,1779712240000,-61685.94725322,0.00014038,2]
[422986531,1779712240000,-134501.26126888,0.00014038,2]
[422986523,1779712240000,-500.0,0.00014038,2]
[422986525,1779712240000,-500.0,0.00014038,2]
[422986526,1779712240000,-500.0,0.00014038,2]
[422986533,1779712240000,-15302.56926375,0.00014038,2]
[422986534,1779712240000,-8536.57800678,0.00014038,2]
[422986537,1779712240000,-647.0,0.00013452,5]
[422986540,1779712240000,-500.0,0.00013452,5]
[422986539,1779712240000,-500.0,0.00013452,5]
[422986538,1779712240000,-500.0,0.00013452,5]
[422986545,1779712240000,-500.0,0.00013452,5]
[422986543,1779712240000,-500.0,0.00013452,5]
[422986542,1779712240000,-500.0,0.00013452,5]
[422986544,1779712240000,-504.64553665,0.00013452,5]
[422986493,1779712240000,-224.86476407,0.00014037,2]
[422986518,1779712240000,-500.0,0.00014037,2]
[422986517,1779712240000,-500.0,0.00014037,2]
[422986527,1779712240000,-500.0,0.00014038,2]
[422986512,1779712240000,-500.0,0.00014037,2]
[422986519,1779712240000,-500.0,0.00014037,2]
[422986484,1779712240000,-500.0,0.00014037,2]
[422986487,1779712240000,-500.0,0.00014037,2]
[422986495,1779712240000,-500.0,0.00014037,2]
[422986508,1779712240000,-500.0,0.00014037,2]
[422986499,1779712240000,-500.0,0.00014037,2]
[422986498,1779712240000,-500.0,0.00014037,2]
[422986509,1779712240000,-500.0,0.00014037,2]
[422986503,1779712240000,-500.0,0.00014037,2]
[422986496,1779712240000,-500.0,0.00014037,2]
[422986497,1779712240000,-500.0,0.00014037,2]
[422986507,1779712240000,-500.0,0.00014037,2]
[422986506,1779712240000,-500.0,0.00014037,2]
[422986502,1779712240000,-500.0,0.00014037,2]
[422986501,1779712240000,-500.0,0.00014037,2]
[422986504,1779712240000,-500.0,0.00014037,2]
[422986505,1779712240000,-500.0,0.00014037,2]
[422986500,1779712240000,-500.0,0.00014037,2]
[422986511,1779712240000,-500.0,0.00014037,2]
[422986521,1779712240000,-500.0,0.00014037,2]
[422986522,1779712240000,-505.09484585,0.00014037,2]
[422986510,1779712240000,-500.0,0.00014037,2]
[422986513,1779712240000,-500.0,0.00014037,2]
[422986520,1779712240000,-500.0,0.00014037,2]
[422986584,1779712241000,-150.0,0.00014237,2]
[422986586,1779712241000,-5798.44836803,0.00014258,2]
[422986585,1779712241000,-166.66,0.00014247,2]
[422986582,1779712241000,-1404.0,0.000142,5]
[422986583,1779712241000,-1031.84904378,0.00014217,2]
[422986573,1779712241000,-151.0,0.00014161,2]
[422986580,1779712241000,-500.0,0.00014199,2]
[422986577,1779712241000,-500.0,0.00014199,2]
[422986576,1779712241000,-500.0,0.00014199,2]
[422986579,1779712241000,-500.0,0.00014199,2]
[422986587,1779712241000,-10716.41178679,0.00014263,2]
[422986581,1779712241000,-500.0,0.00014199,2]
[422986589,1779712241000,-177.30047585,0.00014322,2]
[422986609,1779712241000,-500.0,0.00014573,2]
[422986591,1779712241000,-1031.84904378,0.00014354,2]
[422986588,1779712241000,-2600.0,0.000143,5]
[422986592,1779712241000,-1589.0,0.0001436,2]
[422986596,1779712241000,-10716.41178679,0.00014369,2]
[422986595,1779712241000,-5798.44836803,0.00014365,2]
[422986593,1779712241000,-2316.0,0.0001436,2]
[422986597,1779712241000,-700.0,0.00014377,2]
[422986594,1779712241000,-693.0,0.0001436,2]
[422986601,1779712241000,-800.0,0.00014464,2]
[422986600,1779712241000,-3300.0,0.000144,5]
[422986606,1779712241000,-1520.26,0.00014497,2]
[422986575,1779712241000,-163.57297,0.00014186,2]
[422986590,1779712241000,-150.0,0.00014344,2]
[422986572,1779712241000,-10716.41178679,0.00014156,2]
[422986546,1779712241000,-500.0,0.00013452,5]
[422986578,1779712241000,-500.0,0.00014199,2]
[422986547,1779712241000,-500.0,0.00013452,5]
[422986549,1779712241000,-500.0,0.00013452,5]
[422986605,1779712241000,-1031.84904378,0.0001449,2]
[422986548,1779712241000,-500.0,0.00013452,5]
[422986554,1779712241000,-84841.5424811,0.00014059,2]
[422986551,1779712241000,-5798.44836803,0.00014044,2]
[422986550,1779712241000,-1279973.64420737,0.00014038,2]
[422986553,1779712241000,-2646.0209384,0.00014059,2]
[422986552,1779712241000,-10716.41178679,0.0001405,2]
[422986559,1779712241000,-500.0,0.00014075,2]
[422986556,1779712241000,-4112.6092943,0.00014059,2]
[422986557,1779712241000,-500.0,0.00014075,2]
[422986574,1779712241000,-6166.52773509,0.0001417,2]
[422986558,1779712241000,-500.0,0.00014075,2]
[422986566,1779712241000,-166.66,0.0001411,2]
[422986561,1779712241000,-500.0,0.00014075,2]
[422986563,1779712241000,-1031.84904378,0.00014081,2]
[422986567,1779712241000,-150.0,0.0001413,2]
[422986565,1779712241000,-20273.3904,0.000141,2]
[422986560,1779712241000,-500.0,0.00014075,2]
[422986564,1779712241000,-180.22759195,0.000141,2]
[422986562,1779712241000,-500.0,0.00014075,2]
[422986569,1779712241000,-5798.44836803,0.00014151,2]
[422986570,1779712241000,-2316.0,0.00014156,2]
[422986568,1779712241000,-171.96,0.00014134,2]
[422986571,1779712241000,-2337.0,0.00014156,2]
[422986555,1779712241000,-1428.7247548,0.00014059,2]
[422986604,1779712241000,-163.0,0.00014476,2]
[422986598,1779712241000,-166.66,0.00014384,2]
[422986610,1779712241000,-200.0,0.00014574,2]
[422986647,1779712241000,-158.38740846,0.000149,2]
[422986639,1779712241000,-357.63889,0.0001485,2]
[422986636,1779712241000,-2351.0,0.00014845,2]
[422986638,1779712241000,-357.63889,0.0001485,2]
[422986640,1779712241000,-10000.0,0.000149,2]
[422986641,1779712241000,-5798.44836803,0.000149,2]
[422986646,1779712241000,-13734.67663458,0.000149,2]
[422986643,1779712241000,-10716.41178679,0.000149,2]
[422986645,1779712241000,-158.38740846,0.000149,2]
[422986648,1779712241000,-1031.84904378,0.000149,2]
[422986644,1779712241000,-158.38740846,0.000149,2]
[422986660,1779712241000,-199.11874836,0.00014986,2]
[422986637,1779712241000,-357.63888,0.0001485,2]
[422986649,1779712241000,-646.90795331,0.000149,2]
[422986653,1779712241000,-204.7547601,0.00014944,2]
[422986652,1779712241000,-4224.0116759,0.00014944,2]
[422986650,1779712241000,-150.0,0.00014924,2]
[422986656,1779712241000,-17874.0,0.00014959,2]
[422986657,1779712241000,-355.0,0.00014985,4]
[422986659,1779712241000,-150.0,0.00014986,2]
[422986654,1779712241000,-500.0,0.00014958,2]
[422986655,1779712241000,-7318.0,0.00014959,2]
[422986658,1779712241000,-355.0,0.00014985,4]
[422986663,1779712241000,-150.64808401,0.00014986,2]
[422986661,1779712241000,-150.0,0.00014986,2]
[422986599,1779712241000,-644.02,0.0001439,2]
[422986651,1779712241000,-171.58070749,0.00014925,2]
[422986633,1779712241000,-195.84112978,0.00014799,2]
[422986642,1779712241000,-1182.0,0.000149,5]
[422986634,1779712241000,-555.06801264,0.00014799,2]
[422986602,1779712241000,-5798.44836803,0.00014472,2]
[422986603,1779712241000,-10716.41178679,0.00014475,2]
[422986607,1779712241000,-600.0,0.000145,5]
[422986628,1779712241000,-18930.706961,0.00014782,2]
[422986662,1779712241000,-263.26296792,0.00014986,2]
[422986614,1779712241000,-150.0,0.00014612,2]
[422986620,1779712241000,-10716.41178679,0.00014688,2]
[422986622,1779712241000,-600.0,0.000147,5]
[422986613,1779712241000,-600.0,0.000146,5]
[422986623,1779712241000,-1100.0,0.00014725,2]
[422986617,1779712241000,-2316.0,0.0001468,2]
[422986615,1779712241000,-1031.84904378,0.00014627,2]
[422986612,1779712241000,-10716.41178679,0.00014581,2]
[422986619,1779712241000,-5798.44836803,0.00014686,2]
[422986608,1779712241000,-150.0,0.00014558,2]
[422986611,1779712241000,-5798.44836803,0.00014579,2]
[422986621,1779712241000,-2292.91868697,0.00014699,2]
[422986624,1779712241000,-500.0,0.00014725,2]
[422986626,1779712241000,-1031.84904378,0.00014763,2]
[422986632,1779712241000,-163.0,0.00014796,2]
[422986629,1779712241000,-917.6471704,0.00014782,2]
[422986631,1779712241000,-10716.41178679,0.00014794,2]
[422986630,1779712241000,-5798.44836803,0.00014793,2]
[422986635,1779712241000,-600.0,0.000148,5]
[422986625,1779712241000,-500.0,0.00014725,2]
[422986616,1779712241000,-1589.0,0.0001468,2]
[422986618,1779712241000,-193.0,0.0001468,2]
[422986627,1779712241000,-150.0,0.00014772,2]
[422986679,1779712242000,-286.72433604,0.00014999,2]
[422986683,1779712242000,-151.0,0.00014999,2]
[422986678,1779712242000,-500.0,0.00014999,2]
[422986676,1779712242000,-1116.93168818,0.00014999,5]
[422986675,1779712242000,-1236.95033188,0.00014999,5]
[422986674,1779712242000,-250000.0,0.00014999,2]
[422986677,1779712242000,-764.74722007,0.00014999,2]
[422986682,1779712242000,-151.0,0.00014999,2]
[422986672,1779712242000,-500.0,0.00014998,2]
[422986681,1779712242000,-151.0,0.00014999,2]
[422986668,1779712242000,-295.22359984,0.0001499,2]
[422986680,1779712242000,-155.750009,0.00014999,2]
[422986671,1779712242000,-500.0,0.00014998,2]
[422986670,1779712242000,-500.0,0.00014998,2]
[422986669,1779712242000,-500.0,0.00014998,2]
[422986666,1779712242000,-228.2432295,0.00014986,2]
[422986665,1779712242000,-150.0,0.00014986,2]
[422986667,1779712242000,-295.22359984,0.0001499,2]
[422986664,1779712242000,-150.0,0.00014986,2]
[422986684,1779712242000,-151.0,0.00014999,2]
[422986673,1779712242000,-245466.13266453,0.00014999,2]
[422986686,1779712242000,-151.0,0.00014999,2]
[422986719,1779712242000,-500.0,0.00013452,5]
[422986692,1779712242000,-151.0,0.00014999,2]
[422986691,1779712242000,-238.695986,0.00014999,2]
[422986722,1779712242000,-220.69812666,0.00013452,5]
[422986721,1779712242000,-647.0,0.00013452,5]
[422986720,1779712242000,-500.0,0.00013452,5]
[422986718,1779712242000,-500.0,0.00013452,5]
[422986716,1779712242000,-500.0,0.00013452,5]
[422986717,1779712242000,-500.0,0.00013452,5]
[422986714,1779712242000,-500.0,0.00013452,5]
[422986715,1779712242000,-500.0,0.00013452,5]
[422986713,1779712242000,-500.0,0.00013452,5]
[422986723,1779712242000,-660.52422305,0.00015,2]
[422986711,1779712242000,-500.0,0.00013452,5]
[422986712,1779712242000,-647.0,0.00013452,5]
[422986688,1779712242000,-357.63889,0.00014999,2]
[422986690,1779712242000,-464.4985681,0.00014999,2]
[422986689,1779712242000,-357.63889,0.00014999,2]
[422986693,1779712242000,-151.0,0.00014999,2]
[422986685,1779712242000,-151.0,0.00014999,2]
[422986694,1779712242000,-260.783653,0.00014999,2]
[422986695,1779712242000,-218882.19524912,0.00015,2]
[422986687,1779712242000,-357.63889,0.00014999,2]
[422986732,1779712243000,-500.0,0.00013452,2]
[422986730,1779712243000,-742.0,0.00013452,5]
[422986734,1779712243000,-742.0,0.00013452,5]
[422986736,1779712243000,-9765.93028119,0.00015,2]
[422986830,1779712245000,-122.76853579,0.00013452,5]
[422986828,1779712245000,-250.0,0.00013203,2]
[422986837,1779712245000,-647.0,0.00013452,5]
[422986834,1779712245000,-500.0,0.00013452,2]
[422986836,1779712245000,-742.0,0.00013452,5]
[422986832,1779712245000,-619.23146421,0.00013452,5]
[422986838,1779712245000,-742.0,0.00013452,5]
[422986840,1779712246000,-742.0,0.00013452,5]
[422986839,1779712246000,-500.0,0.00013452,2]
[422986841,1779712246000,-500.0,0.00013452,5]
[422986846,1779712246000,-500.0,0.00013452,5]
[422986845,1779712246000,-742.0,0.00013452,5]
[422986842,1779712246000,-500.0,0.00013452,2]
[422986843,1779712246000,-742.0,0.00013452,5]
[422986847,1779712246000,-500.0,0.00013452,2]
[422986844,1779712246000,-500.0,0.00013452,5]
[422986856,1779712246000,-60.24106835,0.00013452,2]
[422986855,1779712246000,-742.0,0.00013452,5]
[422986854,1779712246000,-500.0,0.00013452,5]
[422986852,1779712246000,-742.0,0.00013452,5]
[422986849,1779712246000,-323.75094275,0.00013452,5]
[422986850,1779712246000,-500.0,0.00013452,5]
[422986851,1779712246000,-500.0,0.00013452,2]
[422986848,1779712246000,-418.24905725,0.00013452,5]
[422986853,1779712246000,-500.0,0.00013452,2]
[422986887,1779712682000,-500.0,0.00022977,120]
[422986881,1779712682000,-176.0,0.00021324,120]
[422986880,1779712682000,-175.0,0.00021315,120]
[422986882,1779712682000,-500.0,0.00022237,120]
[422986884,1779712682000,-176.0,0.00022391,120]
[422986883,1779712682000,-175.0,0.00022381,120]
[422986888,1779712682000,-500.0,0.00023223,120]
[422986886,1779712682000,-500.0,0.0002273,120]
[422986885,1779712682000,-500.0,0.00022483,120]
[422986891,1779712682000,-500.0,0.0002347,120]
[422986889,1779712682000,-150.0,0.00023231,120]
[422986893,1779712682000,-257.0,0.00023478,120]
[422986894,1779712682000,-150.0,0.00023478,120]
[422986892,1779712682000,-200.0,0.00023478,120]
[422986896,1779712682000,-500.0,0.00023717,120]
[422986897,1779712682000,-500.0,0.00023963,120]
[422986895,1779712682000,-291.0,0.00023478,120]
[422986890,1779712682000,-249.0,0.00023231,120]
[422986908,1779712683000,-1607.17677157,0.00024987,120]
[422986909,1779712683000,-1037.14517345,0.00024997,120]
[422986910,1779712683000,-1037.14517345,0.00025071,120]
[422986907,1779712683000,-500.0,0.00024949,120]
[422986906,1779712683000,-1607.17677157,0.0002488,120]
[422986905,1779712683000,-151.99845603,0.00024877,120]
[422986901,1779712683000,-500.0,0.00024456,120]
[422986903,1779712683000,-264.0,0.00024658,120]
[422986902,1779712683000,-221.0,0.00024658,120]
[422986899,1779712683000,-166.0,0.00023963,120]
[422986898,1779712683000,-150.0,0.00023963,120]
[422986913,1779712683000,-1037.14517345,0.00025145,120]
[422986904,1779712683000,-500.0,0.00024703,120]
[422986911,1779712683000,-200.89709644,0.00025093,120]
[422986900,1779712683000,-500.0,0.0002421,120]
[422986914,1779712683000,-500.0,0.00025196,120]
[422986927,1779712683000,-500.0,0.00027415,120]
[422986926,1779712683000,-500.0,0.00027168,120]
[422986925,1779712683000,-211.26908127,0.00027024,120]
[422986924,1779712683000,-500.0,0.00026922,120]
[422986912,1779712683000,-192.06280119,0.00025145,120]
[422986921,1779712683000,-500.0,0.00026429,120]
[422986922,1779712683000,-500.0,0.00026675,120]
[422986919,1779712683000,-189.98140797,0.00026124,120]
[422986920,1779712683000,-500.0,0.00026182,120]
[422986918,1779712683000,-500.0,0.00025936,120]
[422986917,1779712683000,-500.0,0.00025689,120]
[422986916,1779712683000,-500.0,0.00025442,120]
[422986915,1779712683000,-152.02022343,0.00025221,120]
[422986923,1779712683000,-211.26908127,0.00026874,120]
[422986929,1779712684000,-500.0,0.00027908,120]
[422986928,1779712684000,-500.0,0.00027666,120]
[422986930,1779712686000,703.04139368,0.000279,120]
[422986941,1779712837000,177.217,0.00027908,120]
[422986950,1779713048000,3074.93738024,0.00027908,120]
[422987103,1779713340000,1000.0,0.00027907,120]
[422987125,1779713431000,-124.66896618,0.00011279,2]
[422987124,1779713431000,-175.33103382,0.00011279,2]
[422987123,1779713431000,-192.01330958,0.00011279,2]
[422987122,1779713431000,-107.98669042,0.00011279,2]
[422987120,1779713431000,-172.14,0.00011177,2]
[422987121,1779713431000,-250.0,0.00011229,2]
[422987135,1779713432000,-5000.0,0.00011559,2]
[422987137,1779713432000,-5799.06,0.00011559,2]
[422987142,1779713432000,-1000.0,0.0001157,2]
[422987138,1779713432000,-4262.77585465,0.00011565,2]
[422987132,1779713432000,-250.0,0.00011349,2]
[422987136,1779713432000,-150.99,0.00011559,2]
[422987134,1779713432000,-960.0,0.00011555,2]
[422987131,1779713432000,-200.0,0.00011343,2]
[422987133,1779713432000,-215.0,0.00011392,2]
[422987127,1779713432000,-1000.0,0.0001128,2]
[422987126,1779713432000,-1200.0,0.00011279,2]
[422987129,1779713432000,-1000.0,0.0001128,2]
[422987130,1779713432000,-752.15,0.0001128,2]
[422987128,1779713432000,-1000.0,0.0001128,2]
[422987143,1779713432000,-1000.0,0.0001157,2]
[422987140,1779713432000,-150.0,0.00011569,2]
[422987139,1779713432000,-9999.99,0.00011565,2]
[422987144,1779713432000,-1000.0,0.0001157,2]
[422987158,1779713432000,-1182.49,0.0001158,2]
[422987159,1779713432000,-30971.26542702,0.00011628,2]
[422987157,1779713432000,-191.10191603,0.0001157,2]
[422987141,1779713432000,-1000.0,0.0001157,2]
[422987155,1779713432000,-1000.0,0.0001157,2]
[422987148,1779713432000,-1000.0,0.0001157,2]
[422987150,1779713432000,-1000.0,0.0001157,2]
[422987156,1779713432000,-1000.0,0.0001157,2]
[422987145,1779713432000,-1000.0,0.0001157,2]
[422987146,1779713432000,-1000.0,0.0001157,2]
[422987153,1779713432000,-1000.0,0.0001157,2]
[422987147,1779713432000,-1000.0,0.0001157,2]
[422987151,1779713432000,-1000.0,0.0001157,2]
[422987154,1779713432000,-1000.0,0.0001157,2]
[422987152,1779713432000,-1000.0,0.0001157,2]
[422987149,1779713432000,-1000.0,0.0001157,2]
[422987186,1779713438000,-2364.0,0.00012189,2]
[422987182,1779713438000,-7851.70076515,0.0001204,2]
[422987187,1779713438000,-500.0,0.00012224,2]
[422987184,1779713438000,-7693.0,0.0001214,2]
[422987196,1779713438000,-2500.0,0.00012532,2]
[422987195,1779713438000,-500.0,0.00012498,2]
[422987185,1779713438000,-15887.0,0.00012164,2]
[422987183,1779713438000,-173.11,0.00012123,2]
[422987189,1779713438000,-2104.12653838,0.00012352,2]
[422987181,1779713438000,-13778.0,0.0001201,2]
[422987178,1779713438000,-11918.13043685,0.00011916,2]
[422987177,1779713438000,-152.5,0.00011908,2]
[422987179,1779713438000,-1387.0,0.00011946,2]
[422987176,1779713438000,-1000.0,0.00011822,2]
[422987175,1779713438000,-37308.11138526,0.00011628,2]
[422987174,1779713438000,-2410.51318772,0.00011628,2]
[422987190,1779713438000,-7851.70076512,0.00012358,2]
[422987180,1779713438000,-6002.0,0.00011986,2]
[422987191,1779713438000,-152.0,0.00012385,7]
[422987211,1779713438000,-4995.0,0.00012605,2]
[422987192,1779713438000,-152.0,0.00012385,7]
[422987194,1779713438000,-1680.0,0.00012407,2]
[422987218,1779713438000,-4995.0,0.00012605,2]
[422987216,1779713438000,-4995.0,0.00012605,2]
[422987214,1779713438000,-4995.0,0.00012605,2]
[422987213,1779713438000,-4995.0,0.00012605,2]
[422987210,1779713438000,-4995.0,0.00012605,2]
[422987206,1779713438000,-400.0,0.000126,4]
[422987208,1779713438000,-4995.0,0.00012605,2]
[422987220,1779713438000,-4995.0,0.00012605,2]
[422987198,1779713438000,-177.30047585,0.00012555,2]
[422987204,1779713438000,-2774.69453971,0.00012563,2]
[422987199,1779713438000,-5000.0,0.00012555,2]
[422987202,1779713438000,-11251.375771,0.00012559,2]
[422987200,1779713438000,-288.43521937,0.00012559,2]
[422987197,1779713438000,-902.86791336,0.00012554,2]
[422987193,1779713438000,-420.0,0.00012391,2]
[422987188,1779713438000,-250.0,0.00012295,2]
[422987222,1779713438000,-269.67156957,0.00012605,2]
[422987441,1779713440000,-500.0,0.00012653,2]
[422987443,1779713440000,-500.0,0.00012653,2]
[422987447,1779713440000,-500.0,0.00012653,2]
[422987437,1779713440000,-500.0,0.00012653,2]
[422987435,1779713440000,-500.0,0.00012653,2]
[422987451,1779713440000,-500.0,0.00012653,2]
[422987453,1779713440000,-500.0,0.00012653,2]
[422987430,1779713440000,-500.0,0.00012653,2]
[422987449,1779713440000,-500.0,0.00012653,2]
[422987433,1779713440000,-500.0,0.00012653,2]
[422987468,1779713440000,-500.0,0.00012653,2]
[422987466,1779713440000,-500.0,0.00012653,2]
[422987445,1779713440000,-500.0,0.00012653,2]
[422987439,1779713440000,-500.0,0.00012653,2]
[422987419,1779713440000,-500.0,0.00012653,2]
[422987425,1779713440000,-500.0,0.00012653,2]
[422987421,1779713440000,-163.2532492,0.00012653,2]
[422987409,1779713440000,-5950.02726146,0.00012623,2]
[422987404,1779713440000,-4995.0,0.00012605,2]
[422987406,1779713440000,-2020.64,0.00012605,2]
[422987403,1779713440000,-4725.32843043,0.00012605,2]
[422987408,1779713440000,-4041.29,0.00012605,2]
[422987411,1779713440000,-255.0,0.00012633,2]
[422987414,1779713440000,-151.0,0.00012652,2]
[422987413,1779713440000,-196.81573323,0.00012645,2]
[422987455,1779713440000,-541.30014602,0.00012653,2]
[422987429,1779713440000,-500.0,0.00012653,2]
[422987416,1779713440000,-316.8713026,0.00012653,2]
[422987417,1779713440000,-167.23276065,0.00012653,2]